fUST/lending_fUST_20250226
["ID","MTS","AMOUNT","RATE_DAILY","PERIOD"]
[354470280,1740521438748,-500.0,0.00029637,2]
[354470282,1740521438757,-154.92,0.00029637,2]
[354470283,1740521438766,-503.36246671,0.00029637,2]
[354470285,1740521438776,-124977.62186899,0.00029638,120]
[354470508,1740521440581,-651.75405043,0.00029638,120]
[354470510,1740521440593,-707.33551767,0.00029638,120]
[354470520,1740521440714,-63591.04627258,0.00029638,120]
[354470811,1740521444167,-6497.38280201,0.00029638,120]
[354470955,1740521446243,-673.95451949,0.00029638,120]
[354470956,1740521446273,-25363.4573,0.00029638,120]
[354470957,1740521446285,-8909.5188,0.00029638,120]
[354473453,1740521681599,-669.72470963,0.0001812,2]
[354473454,1740521681622,-300.0,0.00029637,2]
[354473455,1740521681643,-22892.19363854,0.00029638,120]
[354473456,1740521681667,-200.0,0.0003,30]
[354473457,1740521834044,10600.0,0.00025205,30]
[354473458,1740521906049,1000.0,0.0003,10]
[354473459,1740521950298,1000.0,0.00025,2]
[354473460,1740522250232,500.0,0.0003,2]
[354473467,1740522515488,159.28509252,0.0003,120]
[354473468,1740522517399,18898.69655931,0.00029,2]
[354473469,1740522519478,10326.4127475,0.00018,15]
[354473470,1740522519507,54011.26866492,0.00018,15]
[354473491,1740522632644,-233.47757584,0.0002,7]
[354473492,1740522632654,-11521.29275839,0.00029,2]
[354473493,1740522632683,-831.56507433,0.00029,2]
[354473494,1740522632692,-4398.11088796,0.000309,66]
[354473495,1740522632704,-500.0,0.00031,10]
[354473496,1740522632716,-500.0,0.00031,10]
[354473497,1740522632727,-500.0,0.00031,10]
[354473498,1740522632737,-500.0,0.00031,10]
[354473499,1740522632749,-500.0,0.00031,10]
[354473500,1740522632759,-830.27529037,0.00031,10]
[354473501,1740522632768,-160.0,0.00032835,2]
[354473502,1740522632778,-732.28397462,0.00033,2]
[354473503,1740522632790,-500.0,0.00033,2]
[354473504,1740522632801,-500.0,0.00033,2]
[354473505,1740522632811,-500.0,0.00033,2]
[354473506,1740522632821,-500.0,0.00033,2]
[354473507,1740522632830,-500.0,0.00033,2]
[354473508,1740522632840,-500.0,0.00033,2]
[354473509,1740522632850,-151.0,0.00035517,2]
[354473510,1740522632860,-24900.0,0.00035539,2]
[354473511,1740522632870,-154.13709595,0.00035611,2]
[354473512,1740522632880,-221.172353,0.00035711,2]
[354473513,1740522632890,-166.1,0.00036065,2]
[354473514,1740522632899,-4398.11088794,0.00036095,97]
[354473515,1740522632909,-182.71,0.00036613,2]
[354473516,1740522632919,-302.0,0.00037161,2]
[354473517,1740522632929,-334.529,0.00037891,49]
[354473518,1740522632939,-396.0,0.00037927,2]
[354473519,1740522632949,-500.0,0.00038356,30]
[354473520,1740522632959,-500.0,0.0003863,32]
[354473521,1740522632969,-500.0,0.00038904,34]
[354473522,1740522632980,-519.5896138,0.00039178,36]
[354473523,1740522632991,-60000.0,0.0004,2]
[354473524,1740522633001,-1000.0,0.0004,30]
[354473525,1740522633011,-2096.20443506,0.0004,5]
[354473526,1740522633020,-500.0,0.00040231,71]
[354473527,1740522633030,-500.0,0.00040331,80]
[354473528,1740522633040,-500.0,0.00040431,44]
[354473529,1740522633050,-500.0,0.00040531,28]
[354473530,1740522633060,-500.0,0.00040631,40]
[354473531,1740522633071,-500.0,0.00040731,73]
[354473532,1740522633081,-500.0,0.00040831,50]
[354473533,1740522633091,-396.0,0.00040927,2]
[354473534,1740522633101,-500.0,0.00040931,28]
[354473535,1740522633111,-527.89,0.00041031,56]
[354473536,1740522633121,-500.0,0.000411,10]
[354473537,1740522633131,-300.10179536,0.000411,10]
[354473538,1740522633141,-4398.11088794,0.0004129,120]
[354473539,1740522633151,-151.0,0.000415,10]
[354473540,1740522633161,-1169.72470863,0.00041608,90]
[354473541,1740522633171,-500.0,0.00041608,2]
[354473542,1740522633180,-151.0,0.000435,16]
[354473543,1740522633191,-396.0,0.00043927,2]
[354473544,1740522633201,-151.0,0.000455,27]
[354473545,1740522633211,-4398.11088794,0.00046485,120]
[354473546,1740522633222,-504.48004047,0.00046579,10]
[354473547,1740522633234,-159.937132,0.0004685,90]
[354473548,1740522633244,-396.0,0.00046927,2]
[354473549,1740522633254,-151.0,0.000474,28]
[354473550,1740522633265,-1000.0,0.00047689,120]
[354473551,1740522633275,-8005.86429404,0.0004769,4]
[354473552,1740522633285,-19446.38,0.00047699,120]
[354473553,1740522633295,-2500.0,0.000477,5]
[354473554,1740522633304,-55271.72,0.000477,30]
[354473555,1740522633314,-1000.0,0.00047826,120]
[354473556,1740522633324,-500.0,0.00047874,60]
[354473557,1740522633334,-1000.0,0.00047963,120]
[354473558,1740522633344,-1000.0,0.000481,120]
[354473559,1740522633354,-3000.0,0.000482,74]
[354473560,1740522633363,-623.0,0.000482,30]
[354473561,1740522633373,-3000.0,0.0004821,74]
[354473562,1740522633383,-365.64834291,0.00048219,2]
[354473563,1740522633393,-500.0,0.00048219,120]
[354473564,1740522633403,-500.0,0.00048219,120]
[354473565,1740522633414,-500.0,0.00048219,120]
[354473566,1740522633424,-612.22453537,0.00048219,120]
[354473567,1740522633435,-3000.0,0.0004822,74]
[354473568,1740522633445,-3000.0,0.0004823,74]
[354473569,1740522633455,-1000.0,0.00048237,120]
[354473570,1740522633466,-3000.0,0.0004824,74]
[354473571,1740522633477,-3000.0,0.0004825,74]
[354473572,1740522633487,-3000.0,0.0004826,74]
[354473573,1740522633497,-3000.0,0.0004827,74]
[354473574,1740522633508,-3000.0,0.0004828,74]
[354473575,1740522633519,-3000.0,0.0004829,74]
[354473576,1740522633529,-3000.0,0.000483,74]
[354473577,1740522633539,-3000.0,0.0004831,74]
[354473578,1740522633549,-4002.93214702,0.0004831,4]
[354473579,1740522633559,-3000.0,0.0004832,74]
[354473580,1740522633569,-3000.0,0.0004833,74]
[354473581,1740522633579,-3000.0,0.0004834,74]
[354473582,1740522633588,-355.1269712,0.0004834,30]
[354473583,1740522633598,-3000.0,0.0004835,74]
[354473584,1740522633608,-3000.0,0.0004836,74]
[354473585,1740522633618,-3000.0,0.0004837,74]
[354473586,1740522633628,-1000.0,0.00048374,120]
[354473587,1740522633637,-3000.0,0.0004838,74]
[354473588,1740522633647,-3000.0,0.0004839,74]
[354473589,1740522633657,-3000.0,0.000484,74]
[354473590,1740522633667,-322.67128797,0.000484,2]
[354473591,1740522633677,-3000.0,0.0004841,74]
[354473592,1740522633687,-3000.0,0.0004842,74]
[354473593,1740522633697,-3000.0,0.0004843,74]
[354473594,1740522633709,-3000.0,0.0004844,75]
[354473595,1740522633719,-3000.0,0.0004845,75]
[354473596,1740522633731,-3000.0,0.0004846,75]
[354473597,1740522633742,-3000.0,0.0004847,75]
[354473598,1740522633752,-4002.93214702,0.0004847,4]
[354473599,1740522633762,-3000.0,0.0004848,75]
[354473600,1740522633772,-3000.0,0.0004849,75]
[354473601,1740522633782,-3000.0,0.000485,75]
[354473602,1740522633792,-407.48909228,0.000485,2]
[354473603,1740522633802,-3000.0,0.0004851,75]
[354473604,1740522633811,-1000.0,0.00048511,120]
[354473605,1740522633821,-3000.0,0.0004852,75]
[354473606,1740522633831,-3000.0,0.0004853,75]
[354473607,1740522633841,-3000.0,0.0004854,75]
[354473608,1740522633851,-3000.0,0.0004855,75]
[354473609,1740522633861,-3000.0,0.0004856,75]
[354473610,1740522633871,-3492.46217,0.0004857,75]
[354473611,1740522633881,-150.0,0.000486,14]
[354473612,1740522633891,-150.0,0.000486,14]
[354473613,1740522633901,-1000.0,0.00048648,120]
[354473614,1740522633911,-500.0,0.00048683,60]
[354473615,1740522633922,-2000.0,0.000487,6]
[354473616,1740522633932,-407.48909224,0.00048747,2]
[354473617,1740522633943,-356.4276366,0.00048782,30]
[354473618,1740522633953,-1000.0,0.00048785,120]
[354473619,1740522633964,-151.0,0.000488,25]
[354473620,1740522633974,-508.5537272,0.00048884,60]
[354473621,1740522633985,-1000.0,0.00048922,120]
[354473622,1740522633995,-150.0,0.00048937,14]
[354473623,1740522634005,-150.0,0.00048937,14]
[354473624,1740522634016,-407.48909224,0.00048995,2]
[354473625,1740522634025,-151.0,0.00049,21]
[354473626,1740522634035,-1000.0,0.00049059,120]
[354473627,1740522634045,-153.0,0.00049082,30]
[354473628,1740522634055,-153.0,0.00049082,30]
[354473629,1740522634065,-154.8147227,0.00049082,30]
[354473630,1740522634075,-557.361586,0.00049082,30]
[354473631,1740522634085,-153.0,0.00049082,30]
[354473632,1740522634095,-557.1188801,0.00049099,30]
[354473633,1740522634105,-4002.93214702,0.0004919,4]
[354473634,1740522634115,-4002.93214702,0.0004919,4]
[354473635,1740522634124,-1000.0,0.00049196,120]
[354473636,1740522634135,-4542.27738306,0.000492,5]
[354473637,1740522634144,-6972.2101684,0.000492,5]
[354473638,1740522634154,-10000.0,0.000492,110]
[354473639,1740522634165,-55271.72,0.000492,30]
[354473640,1740522634176,-151.0,0.000492,27]
[354473641,1740522634187,-3000.0,0.00049215,2]
[354473642,1740522634197,-407.48909224,0.00049242,2]
[354473643,1740522634207,-500.0,0.00049254,60]
[354473644,1740522634217,-17112.7336206,0.00049258,120]
[354473645,1740522634228,-56041.0500583,0.00049305,4]
[354473646,1740522634238,-175.89,0.00049314,7]
[354473647,1740522634248,-175.89,0.00049314,7]
[354473648,1740522634258,-500.0,0.00049315,30]
[354473649,1740522634268,-500.0,0.00049315,120]
[354473650,1740522634278,-500.0,0.00049315,120]
[354473651,1740522634288,-500.0,0.00049315,120]
[354473652,1740522634298,-500.0,0.00049315,120]
[354473653,1740522634308,-224.54873218,0.00049315,120]
[354473654,1740522634318,-500.0,0.00049315,120]
[354473655,1740522634328,-500.0,0.00049315,120]
[354473656,1740522634338,-500.0,0.00049315,120]
[354473657,1740522634348,-500.0,0.00049315,120]
[354473658,1740522634358,-500.0,0.00049315,120]
[354473659,1740522634368,-349.66117496,0.00049315,2]
[354473660,1740522634378,-621.47299609,0.00049315,120]
[354473661,1740522634389,-500.0,0.00049315,120]
[354473662,1740522634399,-500.26883788,0.00049315,120]
[354473663,1740522634409,-500.0,0.00049315,120]
[354473664,1740522634419,-500.0,0.00049315,120]
[354473665,1740522634430,-500.0,0.00049315,120]
[354473666,1740522634440,-500.0,0.00049315,120]
[354473667,1740522634450,-500.22365524,0.00049315,120]
[354473668,1740522634461,-500.0,0.00049315,120]
[354473669,1740522634471,-500.36360928,0.00049315,120]
[354473670,1740522634483,-2589.76,0.00049315,120]
[354473671,1740522634493,-500.0,0.00049315,120]
[354473672,1740522634503,-500.0,0.00049315,120]
[354473673,1740522634513,-500.0,0.00049315,120]
[354473674,1740522634523,-500.0,0.00049315,120]
[354473675,1740522634533,-500.0,0.00049315,120]
[354473676,1740522634544,-500.0,0.00049315,120]
[354473677,1740522634554,-500.0,0.00049315,120]
[354473678,1740522634565,-500.0,0.00049315,120]
[354473679,1740522634575,-500.0,0.00049315,120]
[354473680,1740522634586,-500.0,0.00049315,120]
[354473681,1740522634596,-1347.83,0.00049315,120]
[354473682,1740522634607,-500.0,0.00049315,120]
[354473683,1740522634617,-500.0,0.00049315,120]
[354473684,1740522634627,-500.0,0.00049315,120]
[354473685,1740522634637,-500.0,0.00049315,120]
[354473686,1740522634647,-505.81643866,0.00049315,120]
[354473687,1740522634657,-500.0,0.00049315,120]
[354473688,1740522634667,-500.0,0.00049315,120]
[354473689,1740522634677,-889.5,0.00049315,120]
[354473690,1740522634687,-500.0,0.00049315,120]
[354473691,1740522634698,-562.64657204,0.00049315,120]
[354473692,1740522634712,-500.0,0.00049315,120]
[354473693,1740522634722,-500.0,0.00049315,120]
[354473694,1740522634734,-500.0,0.00049315,120]
[354473695,1740522634744,-500.0,0.00049315,120]
[354473696,1740522634754,-500.0,0.00049315,120]
[354473697,1740522634764,-500.0,0.00049315,120]
[354473698,1740522634774,-500.0,0.00049315,120]
[354473699,1740522634785,-500.0,0.00049315,120]
[354473700,1740522634794,-1050.06,0.00049315,120]
[354473701,1740522634804,-500.0,0.00049315,120]
[354473702,1740522634814,-500.0,0.00049315,120]
[354473703,1740522634824,-500.0,0.00049315,120]
[354473704,1740522634834,-500.0,0.00049315,120]
[354473705,1740522634844,-500.0,0.00049315,120]
[354473706,1740522634854,-500.0,0.00049315,120]
[354473707,1740522634864,-500.0,0.00049315,120]
[354473708,1740522634876,-500.0,0.00049315,120]
[354473709,1740522634886,-506.72863454,0.00049315,120]
[354473710,1740522634896,-500.0,0.00049315,120]
[354473711,1740522634907,-500.0,0.00049315,120]
[354473712,1740522634919,-500.0,0.00049315,120]
[354473713,1740522634929,-500.0,0.00049315,120]
[354473714,1740522634940,-505.66283094,0.00049315,120]
[354473715,1740522634950,-968.82,0.00049315,120]
[354473716,1740522634960,-500.0,0.00049315,120]
[354473717,1740522634971,-500.0,0.00049315,120]
[354473718,1740522634981,-500.0,0.00049315,120]
[354473719,1740522634991,-500.0,0.00049315,120]
[354473720,1740522635001,-500.0,0.00049315,120]
[354473721,1740522635011,-500.0,0.00049315,120]
[354473722,1740522635021,-500.0,0.00049315,120]
[354473723,1740522635031,-500.0,0.00049315,120]
[354473724,1740522635042,-500.0,0.00049315,120]
[354473725,1740522635052,-500.0,0.00049315,120]
[354473726,1740522635062,-500.0,0.00049315,120]
[354473727,1740522635072,-500.0,0.00049315,120]
[354473728,1740522635082,-500.0,0.00049315,120]
[354473729,1740522635092,-500.0,0.00049315,120]
[354473730,1740522635103,-500.0,0.00049315,120]
[354473731,1740522635113,-596.65,0.00049315,120]
[354473732,1740522635123,-500.0,0.00049315,120]
[354473733,1740522635133,-500.0,0.00049315,120]
[354473734,1740522635144,-501.07964099,0.00049315,120]
[354473735,1740522635154,-500.0,0.00049315,120]
[354473736,1740522635165,-508.07082958,0.00049315,120]
[354473737,1740522635175,-500.0,0.00049315,120]
[354473738,1740522635393,-500.0,0.00049315,120]
[354473739,1740522635404,-500.0,0.00049315,120]
[354473740,1740522635414,-500.0,0.00049315,120]
[354473741,1740522635423,-511.23,0.00049315,120]
[354473742,1740522635432,-500.0,0.00049315,120]
[354473743,1740522635442,-500.0,0.00049315,120]
[354473744,1740522635451,-506.06357073,0.00049315,120]
[354473745,1740522635460,-500.0,0.00049315,120]
[354473746,1740522635470,-500.0,0.00049315,120]
[354473747,1740522635480,-500.0,0.00049315,120]
[354473748,1740522635490,-500.0,0.00049315,120]
[354473749,1740522635500,-281.79838244,0.00049315,120]
[354473750,1740522635509,-500.0,0.00049315,120]
[354473751,1740522635519,-500.0,0.00049315,30]
[354473752,1740522635529,-531.30496355,0.00049315,120]
[354473753,1740522635539,-500.0,0.00049315,120]
[354473754,1740522635548,-500.0,0.00049315,120]
[354473755,1740522635558,-500.0,0.00049315,120]
[354473756,1740522635568,-500.0,0.00049315,120]
[354473757,1740522635577,-970.74,0.00049315,120]
[354473758,1740522635587,-500.0,0.00049315,120]
[354473759,1740522635596,-500.0,0.00049315,120]
[354473760,1740522635606,-500.0,0.00049315,120]
[354473761,1740522635615,-500.0,0.00049315,120]
[354473762,1740522635625,-501.44551969,0.00049315,120]
[354473763,1740522635634,-501.24047914,0.00049315,120]
[354473764,1740522635643,-500.0,0.00049315,120]
[354473765,1740522635653,-500.0,0.00049315,120]
[354473766,1740522635663,-500.0,0.00049315,120]
[354473767,1740522635674,-500.0,0.00049315,120]
[354473768,1740522635683,-500.0,0.00049315,120]
[354473769,1740522635693,-505.22894794,0.00049315,120]
[354473770,1740522635708,-500.0,0.00049315,120]
[354473771,1740522635718,-1182.77,0.00049315,120]
[354473772,1740522635730,-500.0,0.00049315,120]
[354473773,1740522635739,-500.0,0.00049315,120]
[354473774,1740522635750,-500.0,0.00049315,120]
[354473775,1740522635759,-500.0,0.00049315,120]
[354473776,1740522635769,-500.0,0.00049315,120]
[354473777,1740522635778,-500.0,0.00049315,120]
[354473778,1740522635790,-500.0,0.00049315,120]
[354473779,1740522635800,-500.0,0.00049315,120]
[354473780,1740522635810,-500.0,0.00049315,120]
[354473781,1740522635820,-500.0,0.00049315,120]
[354473782,1740522635829,-500.0,0.00049315,120]
[354473783,1740522635839,-500.0,0.00049315,120]
[354473784,1740522635849,-500.0,0.00049315,120]
[354473785,1740522635858,-500.0,0.00049315,120]
[354473786,1740522635867,-500.0,0.00049315,120]
[354473787,1740522635878,-500.0,0.00049315,120]
[354473788,1740522635887,-1000.0,0.00049315,120]
[354473789,1740522635897,-500.0,0.00049315,120]
[354473790,1740522635906,-500.0,0.00049315,120]
[354473791,1740522635915,-500.0,0.00049315,120]
[354473792,1740522635925,-500.0,0.00049315,120]
[354473793,1740522635935,-500.0,0.00049315,120]
[354473794,1740522635944,-887.1,0.00049315,120]
[354473795,1740522635954,-1154.88,0.00049315,120]
[354473796,1740522635964,-500.0,0.00049315,120]
[354473797,1740522635973,-500.0,0.00049315,120]
[354473798,1740522635983,-1361.03,0.00049315,120]
[354473799,1740522635993,-500.0,0.00049315,120]
[354473800,1740522636003,-500.0,0.00049315,120]
[354473801,1740522636012,-962.48,0.00049315,120]
[354473802,1740522636022,-1065.49,0.00049315,120]
[354473803,1740522636031,-806.39,0.00049315,120]
[354473804,1740522636041,-2442.31,0.00049315,120]
[354473805,1740522636051,-590.45,0.00049315,120]
[354473806,1740522636061,-500.0,0.00049315,120]
[354473807,1740522636070,-500.0,0.00049315,120]
[354473808,1740522636080,-1911.46,0.00049315,120]
[354473809,1740522636090,-500.0,0.00049315,120]
[354473810,1740522636100,-2066.17,0.00049315,120]
[354473811,1740522636109,-500.0,0.00049315,120]
[354473812,1740522636119,-500.0,0.00049315,120]
[354473813,1740522636128,-500.0,0.00049315,120]
[354473814,1740522636138,-500.0,0.00049315,120]
[354473815,1740522636147,-500.0,0.00049315,120]
[354473816,1740522636157,-500.0,0.00049315,120]
[354473817,1740522636167,-549.46,0.00049315,120]
[354473818,1740522636177,-500.0,0.00049315,120]
[354473819,1740522636187,-500.0,0.00049315,120]
[354473820,1740522636197,-500.0,0.00049315,120]
[354473821,1740522636206,-500.0,0.00049315,120]
[354473822,1740522636215,-500.0,0.00049315,120]
[354473823,1740522636225,-500.0,0.00049315,120]
[354473824,1740522636235,-500.0,0.00049315,120]
[354473825,1740522636245,-1579.89,0.00049315,120]
[354473826,1740522636254,-647.8,0.00049315,120]
[354473827,1740522636264,-500.0,0.00049315,120]
[354473828,1740522636273,-500.0,0.00049315,120]
[354473829,1740522636283,-670.08,0.00049315,120]
[354473830,1740522636293,-500.0,0.00049315,120]
[354473831,1740522636303,-500.48680402,0.00049315,120]
[354473832,1740522636312,-500.0,0.00049315,120]
[354473833,1740522636322,-500.0,0.00049315,120]
[354473834,1740522636332,-500.0,0.00049315,120]
[354473835,1740522636342,-500.0,0.00049315,120]
[354473836,1740522636351,-500.0,0.00049315,120]
[354473837,1740522636360,-500.0,0.00049315,120]
[354473838,1740522636370,-505.03,0.00049315,120]
[354473839,1740522636379,-500.0,0.00049315,120]
[354473840,1740522636389,-506.44857824,0.00049315,120]
[354473841,1740522636399,-798.3,0.00049315,120]
[354473842,1740522636408,-500.0,0.00049315,120]
[354473843,1740522636418,-1054.91,0.00049315,120]
[354473844,1740522636427,-500.0,0.00049315,20]
[354473845,1740522636437,-500.0,0.00049315,20]
[354473846,1740522636446,-500.0,0.00049315,20]
[354473847,1740522636456,-500.0,0.00049315,20]
[354473848,1740522636466,-500.0,0.00049315,20]
[354473849,1740522636476,-500.0,0.00049315,20]
[354473850,1740522636487,-500.0,0.00049315,120]
[354473851,1740522636497,-500.0,0.00049315,120]
[354473852,1740522636506,-500.0,0.00049315,120]
[354473853,1740522636516,-500.8754972,0.00049315,120]
[354473854,1740522636525,-500.0,0.00049315,120]
[354473855,1740522636535,-500.0,0.00049315,120]
[354473856,1740522636545,-583.2,0.00049315,45]
[354473857,1740522636555,-500.0,0.00049315,120]
[354473858,1740522636565,-500.0,0.00049315,120]
[354473859,1740522636574,-837.31,0.00049315,120]
[354473860,1740522636583,-500.0,0.00049315,120]
[354473861,1740522636593,-500.0,0.00049315,120]
[354473862,1740522636603,-500.0,0.00049315,120]
[354473863,1740522636612,-500.0,0.00049315,120]
[354473864,1740522636622,-609.35,0.00049315,120]
[354473865,1740522636631,-3073.6,0.00049315,120]
[354473866,1740522636640,-500.0,0.00049315,120]
[354473867,1740522636650,-500.0,0.00049315,120]
[354473868,1740522636660,-2055.94,0.00049315,120]
[354473869,1740522636669,-500.0,0.00049315,120]
[354473870,1740522636679,-500.0,0.00049315,120]
[354473871,1740522636688,-500.0,0.00049315,120]
[354473872,1740522636699,-500.0,0.00049315,120]
[354473873,1740522636711,-201.55422494,0.00049315,120]
[354473874,1740522636721,-500.0,0.00049315,120]
[354473875,1740522636732,-504.09771672,0.00049315,120]
[354473876,1740522636741,-285.45315189,0.00049315,120]
[354473877,1740522636752,-572.51,0.00049315,120]
[354473878,1740522636762,-500.0,0.00049315,120]
[354473879,1740522636771,-500.0,0.00049315,120]
[354473880,1740522636781,-504.81140493,0.00049315,120]
[354473881,1740522636791,-500.0,0.00049315,120]
[354473882,1740522636801,-748.66,0.00049315,120]
[354473883,1740522636811,-500.0,0.00049315,120]
[354473884,1740522636821,-1790.63,0.00049315,120]
[354473885,1740522636831,-240.06075267,0.00049315,120]
[354473886,1740522636840,-500.0,0.00049315,120]
[354473887,1740522636850,-500.0,0.00049315,120]
[354473888,1740522636859,-500.0,0.00049315,2]
[354473889,1740522636870,-2329.28,0.00049315,120]
[354473890,1740522636879,-500.0,0.00049315,120]
[354473891,1740522636889,-300.0,0.00049315,120]
[354473892,1740522636898,-500.0,0.00049315,120]
[354473893,1740522636908,-500.0,0.00049315,120]
[354473894,1740522636918,-956.96,0.00049315,120]
[354473895,1740522636928,-500.0,0.00049315,120]
[354473896,1740522636937,-500.0,0.00049315,120]
[354473897,1740522636947,-722.54,0.00049315,120]
[354473898,1740522636957,-779.51,0.00049315,120]
[354473899,1740522636966,-500.0,0.00049315,120]
[354473900,1740522636976,-500.0,0.00049315,120]
[354473901,1740522636987,-500.0,0.00049315,120]
[354473902,1740522636997,-500.0,0.00049315,120]
[354473903,1740522637006,-500.0,0.00049315,120]
[354473904,1740522637015,-1687.4,0.00049315,120]
[354473905,1740522637025,-500.0,0.00049315,120]
[354473906,1740522637035,-500.0,0.00049315,120]
[354473907,1740522637045,-587.69,0.00049315,120]
[354473908,1740522637054,-500.0,0.00049315,120]
[354473909,1740522637063,-500.0,0.00049315,120]
[354473910,1740522637073,-500.0,0.00049315,120]
[354473911,1740522637083,-2032.0,0.00049315,120]
[354473912,1740522637092,-500.0,0.00049315,120]
[354473913,1740522637103,-500.0,0.00049315,120]
[354473914,1740522637113,-546.97,0.00049315,120]
[354473915,1740522637127,-672.88,0.00049315,120]
[354473916,1740522637141,-500.0,0.00049315,120]
[354473917,1740522637155,-500.0,0.00049315,120]
[354473918,1740522637168,-686.84,0.00049315,120]
[354473919,1740522637181,-500.0,0.00049315,120]
[354473920,1740522637192,-559.49,0.00049315,120]
[354473921,1740522637202,-379.03767898,0.00049315,120]
[354473922,1740522637213,-500.0,0.00049315,120]
[354473923,1740522637223,-539.48730989,0.00049315,120]
[354473924,1740522637235,-500.0,0.00049315,120]
[354473925,1740522637246,-502.65970268,0.00049315,120]
[354473926,1740522637259,-500.0,0.00049315,120]
[354473927,1740522637269,-500.0,0.00049315,120]
[354473928,1740522637280,-500.0,0.00049315,120]
[354473929,1740522637292,-3953.93,0.00049315,120]
[354473930,1740522637303,-500.0,0.00049315,120]
[354473931,1740522637314,-500.0,0.00049315,120]
[354473932,1740522637323,-500.0,0.00049315,120]
[354473933,1740522637334,-500.0,0.00049315,120]
[354473934,1740522637344,-182.32,0.00049315,120]
[354473935,1740522637356,-511.7,0.00049315,120]
[354473936,1740522637367,-1782.06,0.00049315,120]
[354473937,1740522637378,-1000.0,0.00049315,20]
[354473938,1740522637389,-500.0,0.00049315,120]
[354473939,1740522637400,-500.0,0.00049315,120]
[354473940,1740522637411,-1002.83712332,0.00049315,120]
[354473941,1740522637421,-500.0,0.00049315,120]
[354473942,1740522637430,-551.87,0.00049315,120]
[354473943,1740522637440,-1034.61,0.00049315,120]
[354473944,1740522637449,-500.0,0.00049315,120]
[354473945,1740522637459,-500.0,0.00049315,120]
[354473946,1740522637468,-500.0,0.00049315,120]
[354473947,1740522637478,-500.0,0.00049315,120]
[354473948,1740522637488,-500.0,0.00049315,120]
[354473949,1740522637497,-778.7,0.00049315,120]
[354473950,1740522637506,-500.0,0.00049315,120]
[354473951,1740522637516,-500.0,0.00049315,120]
[354473952,1740522637526,-502.90334253,0.00049315,120]
[354473953,1740522637535,-500.0,0.00049315,120]
[354473954,1740522637545,-500.0,0.00049315,120]
[354473955,1740522637555,-500.0,0.00049315,120]
[354473956,1740522637564,-567.23,0.00049315,120]
[354473957,1740522637573,-500.0,0.00049315,120]
[354473958,1740522637582,-500.0,0.00049315,120]
[354473959,1740522637592,-500.0,0.00049315,120]
[354473960,1740522637602,-522.69,0.00049315,120]
[354473961,1740522637611,-500.0,0.00049315,120]
[354473962,1740522637621,-500.0,0.00049315,120]
[354473963,1740522637631,-500.0,0.00049315,120]
[354473964,1740522637640,-500.0,0.00049315,120]
[354473965,1740522637650,-500.0,0.00049315,120]
[354473966,1740522637660,-500.0,0.00049315,120]
[354473967,1740522637669,-500.0,0.00049315,120]